[Event "IV Closed GM BCC 2021"]
[Site "Barcelona"]
[Date "2021.04.08"]
[Round "4.1"]
[White "Cuenca Jimenez, Jose Fernando"]
[Black "Perez Mitjans, Orelvis"]
[Result "1-0"]
[ECO "A60"]
[WhiteElo "2506"]
[BlackElo "2412"]
[Annotator "ChessBase"]
[PlyCount "53"]
[EventDate "2021.04.05"]
[EventType "tourn"]
[EventCountry "ESP"]
[SourceTitle "playchess.com"]
[Source "ChessBase"]
[SourceQuality "1"]
[TimeControl "5400+30"]

1. d4 {[%emt 0:00:09]} Nf6 {[%emt 0:12:12]} 2. c4 {[%emt 0:00:26]} c5 {[%emt 0:00:19]} 3. d5 {[%emt 0:00:17]} e6 {[%emt 0:00:08]} 4. Nc3 {[%emt 0:00:39]} exd5 {[%emt 0:00:07]} 5. cxd5 {[%emt 0:00:06]} g6 {[%emt 0:00:08]} 6. d6 {[%emt 0:00:59]} Bg7 {[%emt 0:00:54]} 7. e4 {[%emt 0:00:38]} O-O {[%emt 0:00:12]} 8. e5 {[%emt 0:00:35]} Ne8 {[%emt 0:04:12]} 9. f4 {[%emt 0:01:04]} Nc6 {[%emt 0:12:40]} 10. Nf3 {[%emt 0:04:12]} f6 {[%emt 0:15:22]} 11. Bc4+ {[%emt 0:01:05]} Kh8 {[%emt 0:00:10]} 12. h4 {[%emt 0:26:51]} fxe5 {[%emt 0:00:24]} 13. h5 {[%emt 0:01:13]} exf4 {[%emt 0:04:28]} 14. Nh4 {[%emt 0:01:51]} Ne5 {[%emt 0:36:37]} 15. Nxg6+ {[%emt 0:02:45]} Nxg6 {[%emt 0:00:04]} 16. hxg6 {[%emt 0:00:04]} h6 {[%emt 0:00:03]} 17. Bf7 {[%emt 0:19:22]} Qg5 {[%emt 0:01:55]} 18. Kf1 {[%emt 0:06:20]} b6 {[%emt 0:01:30]} 19. Rh5 {[%emt 0:01:31]} Qg3 {[%emt 0:04:23]} 20. Ne4 {[%emt 0:16:19]} Ba6+ {[%emt 0:00:07]} 21. Kg1 {[%emt 0:00:02]} Qd3 {[%emt 0:00:12]} 22. Qf3 {[%emt 0:00:41]} Qxf3 {[%emt 0:03:58]} 23. gxf3 {[%emt 0:00:09]} Bb7 {[%emt 0:00:18]} 24. Bxf4 {[%emt 0:00:15]} Bxe4 {[%emt 0:00:12]} 25. fxe4 {[%emt 0:00:28]} Nf6 {[%emt 0:00:03]} 26. Rh4 {[%emt 0:05:51]} Nxe4 {[%emt 0:01:14]} 27. Bxh6 {[%emt 0:00:31]} 1-0

[Event "IV Closed GM BCC 2021"]
[Site "Barcelona"]
[Date "2021.04.08"]
[Round "4.2"]
[White "Narciso Dublan, Marc"]
[Black "Hernandez, Cristian Andres"]
[Result "1-0"]
[ECO "B20"]
[WhiteElo "2521"]
[BlackElo "2357"]
[Annotator "RC"]
[PlyCount "113"]
[EventDate "2021.04.05"]
[EventType "tourn"]
[EventCountry "ESP"]
[SourceTitle "playchess.com"]
[Source "ChessBase"]
[SourceQuality "1"]
[TimeControl "5400+30"]

1. e4 {[%emt 0:00:00]} c5 {[%emt 0:00:02]} 2. Be2 {[%emt 0:00:00]} Nc6 {[%emt 0:02:34]} 3. f4 {[%emt 0:00:14]} g6 {[%emt 0:00:40]} 4. Nf3 {[%emt 0:00:15]} d5 {[%emt 0:00:41]} 5. d3 {[%emt 0:00:39]} Nf6 {[%emt 0:00:40]} 6. e5 {[%emt 0:00:29]} Nh5 {[%emt 0:00:32]} 7. O-O {[%emt 0:00:31]} Bh6 {[%emt 0:00:18]} 8. Ne1 {[%emt 0:08:55]} Ng7 {[%emt 0:03:30]} 9. c3 {[%emt 0:05:31]} Ne6 {[%emt 0:09:36]} 10. Na3 {[%emt 0:02:18]} Nc7 {[%emt 0:08:33]} 11. d4 {[%emt 0:09:19]} cxd4 {[%emt 0:04:43]} 12. cxd4 {[%emt 0:00:08]} O-O {[%emt 0:01:47]} 13. Nac2 {[%emt 0:03:08]} f6 {[%emt 0:00:57]} 14. Nd3 {[%emt 0:02:23]} Bf5 {[%emt 0:04:39]} 15. Be3 {[%emt 0:01:41]} Ne6 {[%emt 0:02:46]} 16. Bg4 {[%emt 0:03:35]} fxe5 {[%emt 0:10:12]} 17. Bxf5 {[%emt 0:03:15]} Rxf5 {[%emt 0:00:42]} 18. dxe5 {[%emt 0:00:14]} d4 {[%emt 0:07:09]} 19. Bd2 {[%emt 0:01:26]} Qd5 {[%emt 0:05:03]} 20. Qf3 {[%emt 0:09:03]} Qxf3 {[%emt 0:02:46]} 21. Rxf3 {[%emt 0:00:07]} b6 {[%emt 0:19:36]} 22. Rc1 {[%emt 0:10:56]} Raf8 {[%emt 0:01:29]} 23. Nce1 {[%emt 0:05:57]} Ncd8 {[%emt 0:08:27]} 24. g3 {[%emt 0:03:01]} R5f7 {[%emt 0:00:04]} 25. h4 {[%emt 0:12:42]} Bg7 {[%emt 0:00:04]} 26. Rf2 {[%emt 0:08:02]} h6 {[%emt 0:00:10]} 27. Nf3 {[%emt 0:01:03]} g5 {[%emt 0:00:49]} 28. hxg5 hxg5 {[%emt 0:00:04]} 29. Rh2 {[%emt 0:02:19]} gxf4 {[%emt 0:00:24]} 30. gxf4 {[%emt 0:00:07]} Rf5 {[%emt 0:02:39]} 31. b4 {[%emt 0:04:26]} Kf7 {[%emt 0:00:59]} 32. Kf2 {[%emt 0:00:42]} Ke8 {[%emt 0:01:08]} 33. Rg1 {[%emt 0:01:07]} Kd7 {[%emt 0:00:24]} 34. Ke2 {[%emt 0:01:22]} Rh8 {[%emt 0:01:19]} 35. Rxh8 {[%emt 0:00:30]} Bxh8 {[%emt 0:00:04]} 36. Rg4 {[%emt 0:01:22]} Nf7 {[%emt 0:01:10]} 37. Nf2 {[%emt 0:01:05]} Nh6 {[%emt 0:00:31]} 38. Rh4 {[%emt 0:00:26]} Bg7 {[%emt 0:00:15]} 39. Ne4 {[%emt 0:00:28]} Rf8 {[%emt 0:00:24]} 40. Ng3 {[%emt 0:00:19]} a5 {[%emt 0:00:36]} 41. a3 {[%emt 0:00:29]} axb4 {[%emt 0:00:03]} 42. axb4 {[%emt 0:00:02]} Kc6 {[%emt 0:00:27]} 43. Kd3 {[%emt 0:00:39]} Kd5 {[%emt 0:00:04]} 44. Ne1 {[%emt 0:00:43]} Ra8 {[%emt 0:00:27]} 45. Nc2 {[%emt 0:00:01]} Rf8 {[%emt 0:00:25]} 46. Na3 {[%emt 0:01:23]} Rg8 {[%emt 0:01:47]} 47. Ne2 {[%emt 0:00:32]} Nf5 {[%emt 0:00:15]} 48. Rh5 {[%emt 0:00:12]} Rf8 {[%emt 0:00:26]} 49. Nc4 {[%emt 0:00:25]} b5 {[%emt 0:00:24]} 50. Na3 {[%emt 0:00:29]} Nc7 {[%emt 0:00:23]} 51. Rg5 {[%emt 0:00:43]} e6 {[%emt 0:01:43]} 52. Ng3 {[%emt 0:00:40]} Bh6 {[%emt 0:00:25]} 53. Rg6 {[%emt 0:00:35]} Nxg3 {[%emt 0:00:19]} 54. Rxh6 {[%emt 0:00:05]} Nf5 {[%emt 0:00:41]} 55. Rh7 {[%emt 0:00:39]} Rg8 {[%emt 0:00:11]} 56. Be1 {[%emt 0:00:35]} Rg1 {[%emt 0:00:34]} 57. Rxc7 {[%emt 0:00:09]} 1-0

[Event "IV Closed GM BCC 2021"]
[Site "Barcelona"]
[Date "2021.04.08"]
[Round "4.5"]
[White "Gines Esteo, Pedro Antonio"]
[Black "Ayats Llobera, Gerard"]
[Result "1-0"]
[ECO "B06"]
[WhiteElo "2449"]
[BlackElo "2403"]
[Annotator "RC"]
[PlyCount "115"]
[EventDate "2021.04.05"]
[EventType "tourn"]
[EventCountry "ESP"]
[SourceTitle "playchess.com"]
[Source "ChessBase"]
[SourceQuality "1"]
[TimeControl "5400+30"]

1. d4 {[%emt 0:01:21]} d6 {[%emt 0:00:00]} 2. e4 {[%emt 0:00:37]} g6 {[%emt 0:00:08]} 3. Nc3 {[%emt 0:04:44]} Bg7 {[%emt 0:00:09]} 4. Be3 {[%emt 0:00:10]} Nf6 {[%emt 0:00:44]} 5. h3 {[%emt 0:06:40]} O-O {[%emt 0:00:20]} 6. Nf3 {[%emt 0:00:12]} a6 {[%emt 0:04:41]} 7. a4 {[%emt 0:00:59]} Nbd7 {[%emt 0:00:47]} 8. e5 {[%emt 0:15:47]} Ne8 {[%emt 0:01:19]} 9. Bc4 {[%emt 0:00:24]} Nb6 {[%emt 0:06:30]} 10. Bb3 {[%emt 0:01:06]} d5 {[%emt 0:00:49]} 11. a5 {[%emt 0:14:44]} Nc4 {[%emt 0:00:28]} 12. Bxc4 {[%emt 0:00:18]} dxc4 {[%emt 0:00:05]} 13. d5 {[%emt 0:00:06]} f6 {[%emt 0:03:59]} 14. e6 {[%emt 0:02:09]} c6 {[%emt 0:17:09]} 15. dxc6 {[%emt 0:03:15]} Qxd1+ {[%emt 0:22:46]} 16. Rxd1 {[%emt 0:00:07]} bxc6 {[%emt 0:09:47]} 17. Nd4 {[%emt 0:01:19]} Nc7 {[%emt 0:01:57]} 18. Nxc6 {[%emt 0:07:33]} Re8 {[%emt 0:00:01]} 19. O-O {[%emt 0:05:33]} Bxe6 {[%emt 0:02:58]} 20. Bb6 {[%emt 0:00:47]} Rac8 {[%emt 0:16:02]} 21. Rfe1 {[%emt 0:12:53]} Kf7 {[%emt 0:00:01]} 22. Re2 {[%emt 0:01:51]} Nd5 {[%emt 0:05:05]} 23. Nxd5 {[%emt 0:03:21]} Rxc6 {[%emt 0:00:18]} 24. Nb4 {[%emt 0:01:20]} Rd6 {[%emt 0:03:45]} 25. Rxd6 {[%emt 0:00:41]} exd6 {[%emt 0:00:01]} 26. Nxa6 {[%emt 0:00:31]} Bc8 {[%emt 0:02:19]} 27. Rxe8 {[%emt 0:00:13]} Kxe8 {[%emt 0:00:01]} 28. Nb4 {[%emt 0:01:20]} f5 {[%emt 0:00:47]} 29. c3 {[%emt 0:00:10]} Bb7 {[%emt 0:00:30]} 30. f3 {[%emt 0:02:43]} Bh6 {[%emt 0:00:14]} 31. Kf2 {[%emt 0:08:19]} Bc1 {[%emt 0:00:01]} 32. Ke2 {[%emt 0:00:07]} Bxb2 {[%emt 0:00:23]} 33. Kd2 {[%emt 0:01:20]} Kd7 {[%emt 0:00:47]} 34. h4 {[%emt 0:02:48]} f4 {[%emt 0:00:58]} 35. Bg1 {[%emt 0:01:14]} h6 {[%emt 0:00:53]} 36. Bd4 {[%emt 0:00:07]} Ba3 {[%emt 0:00:34]} 37. a6 {[%emt 0:00:36]} Ba8 {[%emt 0:00:10]} 38. Nc2 {[%emt 0:00:57]} Bb2 {[%emt 0:00:40]} 39. Bg7 {[%emt 0:00:20]} h5 {[%emt 0:00:43]} 40. Bh6 {[%emt 0:00:11]} Kc6 {[%emt 0:00:37]} 41. Bxf4 {[%emt 0:00:07]} Kc5 {[%emt 0:00:33]} 42. a7 {[%emt 0:01:11]} Kd5 {[%emt 0:00:30]} 43. Be3 {[%emt 0:00:37]} Kc6 {[%emt 0:00:14]} 44. Bd4 {[%emt 0:00:29]} Kd7 {[%emt 0:00:18]} 45. Ne3 {[%emt 0:00:18]} d5 {[%emt 0:00:01]} 46. Nc2 {[%emt 0:00:21]} Ke6 {[%emt 0:00:33]} 47. g4 {[%emt 0:00:48]} Bb7 {[%emt 0:00:28]} 48. Bc5 {[%emt 0:00:39]} Ke5 {[%emt 0:00:26]} 49. gxh5 {[%emt 0:00:23]} gxh5 {[%emt 0:00:02]} 50. Nd4 {[%emt 0:00:08]} Ba1 {[%emt 0:01:51]} 51. Bb4 {[%emt 0:00:15]} Ba8 {[%emt 0:00:31]} 52. Kc2 {[%emt 0:00:40]} Kf4 {[%emt 0:00:28]} 53. Kb1 {[%emt 0:00:08]} Kg3 {[%emt 0:00:30]} 54. Kxa1 {[%emt 0:00:16]} Kxh4 {[%emt 0:00:02]} 55. f4 {[%emt 0:00:12]} Kg4 {[%emt 0:00:20]} 56. f5 {[%emt 0:00:08]} Kg5 {[%emt 0:00:04]} 57. Be7+ {[%emt 0:00:08]} Kh6 {[%emt 0:00:04]} 58. Kb2 {[%emt 0:00:10]} 1-0

[Event "IV Closed GM BCC 2021"]
[Site "Barcelona"]
[Date "2021.04.09"]
[Round "5.4"]
[White "Hernandez, Cristian Andres"]
[Black "Valenzuela Gomez, Fernando"]
[Result "1-0"]
[ECO "B51"]
[WhiteElo "2357"]
[BlackElo "2382"]
[Annotator "NA"]
[PlyCount "87"]
[EventDate "2021.04.05"]
[EventType "tourn"]
[EventCountry "ESP"]
[SourceTitle "playchess.com"]
[Source "ChessBase"]
[SourceQuality "1"]
[TimeControl "5400+30"]

1. e4 {[%emt 0:00:00]} c5 {[%emt 0:06:50]} 2. Nf3 {[%emt 0:00:00]} d6 {[%emt 0:00:08]} 3. Bb5+ {[%emt 0:00:00]} Nd7 {[%emt 0:00:07]} 4. d4 {[%emt 0:00:00]} cxd4 {[%emt 0:00:17]} 5. Qxd4 {[%emt 0:00:02]} a6 {[%emt 0:00:46]} 6. Bxd7+ {[%emt 0:00:06]} Bxd7 {[%emt 0:00:34]} 7. Nc3 {[%emt 0:00:07]} e5 {[%emt 0:03:51]} 8. Qd3 {[%emt 0:00:06]} Rc8 {[%emt 0:02:02]} 9. Bg5 {[%emt 0:00:55]} Qc7 {[%emt 0:02:41]} 10. Nd2 {[%emt 0:30:31]} Be6 {[%emt 0:11:26]} 11. Nf1 {[%emt 0:06:08]} h6 {[%emt 0:01:08]} 12. Bh4 {[%emt 0:00:19]} Qa5 {[%emt 0:13:30]} 13. Ne3 {[%emt 0:02:39]} Qb4 {[%emt 0:03:52]} 14. O-O-O {[%emt 0:02:56]} g5 {[%emt 0:00:45]} 15. Bg3 {[%emt 0:00:27]} Nf6 {[%emt 0:01:02]} 16. f3 {[%emt 0:04:40]} Be7 {[%emt 0:01:41]} 17. h4 {[%emt 0:07:09]} g4 {[%emt 0:03:10]} 18. h5 {[%emt 0:02:16]} b5 {[%emt 0:03:15]} 19. Bh4 {[%emt 0:02:29]} gxf3 {[%emt 0:10:27]} 20. gxf3 {[%emt 0:01:16]} Qc5 {[%emt 0:01:23]} 21. Nf5 {[%emt 0:10:11]} Bxf5 {[%emt 0:00:35]} 22. exf5 {[%emt 0:00:05]} d5 {[%emt 0:08:59]} 23. Bxf6 {[%emt 0:02:11]} Bxf6 {[%emt 0:00:04]} 24. Qxd5 {[%emt 0:07:42]} Qxd5 {[%emt 0:02:02]} 25. Rxd5 {[%emt 0:00:17]} Rd8 {[%emt 0:02:39]} 26. Rxd8+ {[%emt 0:02:12]} Bxd8 {[%emt 0:00:18]} 27. Rg1 {[%emt 0:01:54]} Bg5+ {[%emt 0:02:27]} 28. Kd1 {[%emt 0:00:05]} Be3 {[%emt 0:00:34]} 29. Rg4 {[%emt 0:03:52]} Bd4 {[%emt 0:00:23]} 30. Ne4 {[%emt 0:07:56]} Bxb2 {[%emt 0:00:17]} 31. Nf6+ {[%emt 0:00:33]} Ke7 {[%emt 0:00:40]} 32. Rg8 {[%emt 0:00:23]} Rxg8 {[%emt 0:05:43]} 33. Nxg8+ {[%emt 0:00:05]} Kd6 {[%emt 0:00:03]} 34. Nxh6 {[%emt 0:00:06]} e4 {[%emt 0:00:05]} 35. fxe4 {[%emt 0:02:28]} Ke5 {[%emt 0:00:05]} 36. Nxf7+ {[%emt 0:00:13]} Kxe4 {[%emt 0:00:07]} 37. h6 {[%emt 0:00:19]} Kxf5 {[%emt 0:00:23]} 38. h7 {[%emt 0:00:04]} Ke4 {[%emt 0:01:46]} 39. h8=Q {[%emt 0:03:15]} Bxh8 {[%emt 0:00:03]} 40. Nxh8 {[%emt 0:00:09]} Kd4 {[%emt 0:00:07]} 41. Kc1 {[%emt 0:00:20]} Kc3 {[%emt 0:00:21]} 42. Ng6 {[%emt 0:00:05]} a5 {[%emt 0:00:13]} 43. Nf4 {[%emt 0:00:10]} Kb4 {[%emt 0:00:44]} 44. Kb2 {[%emt 0:00:08]} 1-0

[Event "IV Closed GM BCC 2021"]
[Site "Barcelona"]
[Date "2021.04.09"]
[Round "5.5"]
[White "Perez Mitjans, Orelvis"]
[Black "Narciso Dublan, Marc"]
[Result "1/2-1/2"]
[ECO "B10"]
[WhiteElo "2412"]
[BlackElo "2521"]
[Annotator "ChessBase"]
[PlyCount "66"]
[EventDate "2021.04.05"]
[EventType "tourn"]
[EventCountry "ESP"]
[SourceTitle "playchess.com"]
[Source "ChessBase"]
[SourceQuality "1"]
[TimeControl "5400+30"]

1. e4 {[%emt 0:15:58]} c6 {[%emt 0:00:00]} 2. Nf3 {[%emt 0:00:45]} d5 {[%emt 0:00:06]} 3. exd5 {[%emt 0:00:57]} cxd5 {[%emt 0:00:11]} 4. d4 {[%emt 0:00:08]} Nf6 {[%emt 0:00:52]} 5. Ne5 {[%emt 0:05:43]} g6 {[%emt 0:01:06]} 6. Bb5+ {[%emt 0:01:01]} Nbd7 {[%emt 0:00:54]} 7. O-O {[%emt 0:00:13]} Bg7 {[%emt 0:00:23]} 8. f4 {[%emt 0:01:21]} O-O {[%emt 0:00:48]} 9. c3 {[%emt 0:00:11]} Ne4 {[%emt 0:03:14]} 10. Bd3 {[%emt 0:00:56]} Ndf6 {[%emt 0:02:08]} 11. Nd2 {[%emt 0:08:13]} Bf5 {[%emt 0:01:09]} 12. Nxe4 {[%emt 0:00:58]} Bxe4 {[%emt 0:00:19]} 13. Bxe4 {[%emt 0:04:07]} Nxe4 {[%emt 0:00:11]} 14. Qb3 {[%emt 0:00:18]} Qd6 {[%emt 0:05:51]} 15. Be3 {[%emt 0:06:50]} e6 {[%emt 0:09:34]} 16. a4 {[%emt 0:19:47]} Qc7 {[%emt 0:05:10]} 17. Rf3 {[%emt 0:02:54]} Rab8 {[%emt 0:03:40]} 18. Rh3 {[%emt 0:00:41]} Nd6 {[%emt 0:03:12]} 19. Qc2 {[%emt 0:02:13]} b5 {[%emt 0:02:33]} 20. axb5 {[%emt 0:00:28]} Rxb5 {[%emt 0:00:09]} 21. Qf2 {[%emt 0:01:39]} Rfb8 {[%emt 0:01:39]} 22. Bc1 {[%emt 0:01:30]} h5 {[%emt 0:04:49]} 23. g4 {[%emt 0:02:43]} hxg4 {[%emt 0:00:41]} 24. Nxg4 {[%emt 0:00:04]} Nf5 {[%emt 0:05:03]} 25. Ne5 {[%emt 0:00:21]} R8b7 {[%emt 0:09:50]} 26. Ra6 {[%emt 0:01:51]} Ra5 {[%emt 0:03:10]} 27. Rc6 {[%emt 0:04:56]} Qd8 {[%emt 0:03:35]} 28. b4 {[%emt 0:02:22]} Rab5 {[%emt 0:03:17]} 29. Qe2 {[%emt 0:02:39]} Qe8 {[%emt 0:02:34]} 30. Ra6 {[%emt 0:02:12]} R5b6 {[%emt 0:04:27]} 31. Ra5 {[%emt 0:00:12]} Rb5 {[%emt 0:04:04]} 32. Ra6 {[%emt 0:01:09]} R5b6 {[%emt 0:03:26]} 33. Ra5 {[%emt 0:00:23]} Rb5 1/2-1/2